[Event "December 12 Early 2023"]
[Site "https://www.chess.com"]
[Date "2023.12.12"]
[Round "4"]
[White "Leve, Nitai"]
[Black "Gong, Qianyun"]
[Result "1-0"]
[Board "135"]
[TimeControl "180+1"]
[WhiteFideId "2006898"]
[BlackFideId "8602425"]
[WhiteElo "2413"]
[BlackElo "2567"]
[WhiteTeam "USA"]
[BlackTeam "SGP"]
[WhiteClock "0:00:05"]
[BlackClock "0:00:00"]

1. e4 {[%clk 0:02:56]}  e6 {[%clk 0:02:59]} 2. d4 {[%clk 0:02:55]}  d5 {[%clk 0:02:59]} 3. e5 {[%clk 0:02:56]}  c5 {[%clk 0:02:59]} 4. c3 {[%clk 0:02:56]}  Nc6 {[%clk 0:03:00]} 5. Nf3 {[%clk 0:02:56]}  Nge7 {[%clk 0:03:00]} 6. Bd3 {[%clk 0:02:54]}  Nf5 {[%clk 0:02:58]} 7. Bxf5 {[%clk 0:02:53]}  exf5 {[%clk 0:02:59]} 8. O-O {[%clk 0:02:53]}  cxd4 {[%clk 0:02:58]} 9. cxd4 {[%clk 0:02:54]}  Be7 {[%clk 0:02:57]} 10. Nc3 {[%clk 0:02:54]}  Be6 {[%clk 0:02:56]} 11. Qb3 {[%clk 0:02:53]}  O-O {[%clk 0:02:54]} 12. a3 {[%clk 0:02:49]}  a6 {[%clk 0:02:49]} 13. Qa2 {[%clk 0:02:06]}  Na5 {[%clk 0:02:40]} 14. b3 {[%clk 0:01:43]}  Rc8 {[%clk 0:02:39]} 15. Bd2 {[%clk 0:01:43]}  h6 {[%clk 0:02:33]} 16. Rfc1 {[%clk 0:01:42]}  Nc6 {[%clk 0:02:30]} 17. b4 {[%clk 0:01:39]}  b5 {[%clk 0:02:19]} 18. Ne2 {[%clk 0:01:34]}  g5 {[%clk 0:02:13]} 19. Ne1 {[%clk 0:01:33]}  f4 {[%clk 0:02:05]} 20. Nd3 {[%clk 0:01:33]}  f6 {[%clk 0:01:51]} 21. Rc2 {[%clk 0:01:22]}  Bf5 {[%clk 0:01:49]} 22. Qb3 {[%clk 0:01:22]}  fxe5 {[%clk 0:01:15]} 23. dxe5 {[%clk 0:00:41]}  Bxd3 {[%clk 0:01:13]} 24. Qxd3 {[%clk 0:00:42]}  Nxe5 {[%clk 0:01:13]} 25. Rxc8 {[%clk 0:00:20]}  Nxd3 {[%clk 0:01:11]} 26. Rxd8 {[%clk 0:00:21]}  Rxd8 {[%clk 0:01:11]} 27. Bc3 {[%clk 0:00:22]}  f3 {[%clk 0:00:54]} 28. gxf3 {[%clk 0:00:23]}  Rf8 {[%clk 0:00:48]} 29. Kg2 {[%clk 0:00:17]}  Nf4+ {[%clk 0:00:47]} 30. Nxf4 {[%clk 0:00:17]}  Rxf4 {[%clk 0:00:48]} 31. Rd1 {[%clk 0:00:17]}  Rf5 {[%clk 0:00:48]} 32. Bd4 {[%clk 0:00:14]}  Kf7 {[%clk 0:00:48]} 33. Kg3 {[%clk 0:00:14]}  Bd6+ {[%clk 0:00:48]} 34. Kg2 {[%clk 0:00:13]}  Ke6 {[%clk 0:00:46]} 35. Re1+ {[%clk 0:00:11]}  Kd7 {[%clk 0:00:47]} 36. Rc1 {[%clk 0:00:11]}  Rf4 {[%clk 0:00:46]} 37. Rd1 {[%clk 0:00:11]}  g4 {[%clk 0:00:39]} 38. fxg4 {[%clk 0:00:11]}  Rxg4+ {[%clk 0:00:40]} 39. Kh3 {[%clk 0:00:09]}  h5 {[%clk 0:00:38]} 40. f3 {[%clk 0:00:09]}  Rf4 {[%clk 0:00:37]} 41. Kg2 {[%clk 0:00:09]}  Rh4 {[%clk 0:00:37]} 42. h3 {[%clk 0:00:09]}  Rf4 {[%clk 0:00:37]} 43. Be3 {[%clk 0:00:09]}  Rf5 {[%clk 0:00:36]} 44. Rd3 {[%clk 0:00:10]}  Ke6 {[%clk 0:00:30]} 45. Bd2 {[%clk 0:00:09]}  Rf7 {[%clk 0:00:28]} 46. Re3+ {[%clk 0:00:09]}  Kd7 {[%clk 0:00:28]} 47. Rd3 {[%clk 0:00:10]}  Rg7+ {[%clk 0:00:27]} 48. Kf2 {[%clk 0:00:09]}  Bg3+ {[%clk 0:00:26]} 49. Ke2 {[%clk 0:00:09]}  Kd6 {[%clk 0:00:25]} 50. f4 {[%clk 0:00:10]}  h4 {[%clk 0:00:24]} 51. Kf3 {[%clk 0:00:10]}  Rc7 {[%clk 0:00:20]} 52. f5 {[%clk 0:00:09]}  Ke5 {[%clk 0:00:19]} 53. f6 {[%clk 0:00:08]}  Rf7 {[%clk 0:00:19]} 54. Bg5 {[%clk 0:00:07]}  d4 {[%clk 0:00:17]} 55. Kg4 {[%clk 0:00:06]}  Ke4 {[%clk 0:00:17]} 56. Rd1 {[%clk 0:00:06]}  d3 {[%clk 0:00:17]} 57. Kh5 {[%clk 0:00:06]}  Rd7 {[%clk 0:00:16]} 58. Kg6 {[%clk 0:00:06]}  Kf3 {[%clk 0:00:16]} 59. f7 {[%clk 0:00:06]}  Rd8 {[%clk 0:00:14]} 60. Bxd8 {[%clk 0:00:05]}  Bd6 {[%clk 0:00:00]} 61. Rxd3+ {[%clk 0:00:05]} 1-0

[Event "December 12 Early 2023"]
[Site "https://www.chess.com"]
[Date "2023.12.12"]
[Round "4"]
[White "Parra Gomez, Adrian"]
[Black "Osmak, Yuliia"]
[Result "1-0"]
[Board "138"]
[TimeControl "180+1"]
[WhiteFideId "3513106"]
[BlackFideId "14101602"]
[WhiteElo "2408"]
[BlackElo "2546"]
[WhiteTeam "CUB"]
[BlackTeam "UKR"]
[WhiteClock "0:00:28"]
[BlackClock "0:00:00"]

1. d4 {[%clk 0:03:00]}  d6 {[%clk 0:02:57]} 2. c4 {[%clk 0:03:01]}  e5 {[%clk 0:02:56]} 3. Nc3 {[%clk 0:02:59]}  exd4 {[%clk 0:02:55]} 4. Qxd4 {[%clk 0:03:00]}  Nc6 {[%clk 0:02:55]} 5. Qd2 {[%clk 0:03:00]}  Nf6 {[%clk 0:02:50]} 6. b3 {[%clk 0:03:00]}  g6 {[%clk 0:02:49]} 7. Bb2 {[%clk 0:03:01]}  Bg7 {[%clk 0:02:49]} 8. Nf3 {[%clk 0:02:59]}  O-O {[%clk 0:02:49]} 9. e3 {[%clk 0:02:59]}  Bg4 {[%clk 0:02:46]} 10. Be2 {[%clk 0:03:00]}  Re8 {[%clk 0:02:45]} 11. O-O {[%clk 0:03:00]}  Qd7 {[%clk 0:02:34]} 12. Rfd1 {[%clk 0:02:54]}  Rad8 {[%clk 0:02:22]} 13. h3 {[%clk 0:02:47]}  Bf5 {[%clk 0:02:17]} 14. Bd3 {[%clk 0:02:36]}  Bxh3 {[%clk 0:02:09]} 15. gxh3 {[%clk 0:02:32]}  Qxh3 {[%clk 0:02:10]} 16. Nh2 {[%clk 0:02:31]}  Ne5 {[%clk 0:02:02]} 17. Bf1 {[%clk 0:02:30]}  Qh4 {[%clk 0:01:57]} 18. Nd5 {[%clk 0:01:20]}  Ne4 {[%clk 0:01:52]} 19. Qe2 {[%clk 0:01:15]}  c6 {[%clk 0:01:25]} 20. Nf4 {[%clk 0:01:15]}  g5 {[%clk 0:01:23]} 21. Ng2 {[%clk 0:01:12]}  Qh3 {[%clk 0:01:18]} 22. Ne1 {[%clk 0:01:09]}  Qf5 {[%clk 0:01:12]} 23. Rab1 {[%clk 0:01:03]}  Re6 {[%clk 0:01:08]} 24. Bg2 {[%clk 0:00:59]}  Rh6 {[%clk 0:01:02]} 25. Nef3 {[%clk 0:00:56]}  Ng4 {[%clk 0:00:26]} 26. Bxg7 {[%clk 0:00:52]}  Kxg7 {[%clk 0:00:25]} 27. Nd4 {[%clk 0:00:44]}  Qxf2+ {[%clk 0:00:21]} 28. Qxf2 {[%clk 0:00:44]}  Ngxf2 {[%clk 0:00:14]} 29. Bxe4 {[%clk 0:00:40]}  Rxh2 {[%clk 0:00:03]} 30. Kxh2 {[%clk 0:00:34]}  Nxe4 {[%clk 0:00:02]} 31. Rb2 {[%clk 0:00:31]}  f6 {[%clk 0:00:01]} 32. Kg2 {[%clk 0:00:29]}  Re8 {[%clk 0:00:01]} 33. Nf5+ {[%clk 0:00:29]}  Kg6 {[%clk 0:00:01]} 34. Nxd6 {[%clk 0:00:29]}  Nc3 {[%clk 0:00:01]} 35. Nxe8 {[%clk 0:00:29]}  Nxd1 {[%clk 0:00:01]} 36. Re2 {[%clk 0:00:27]}  Nc3 {[%clk 0:00:01]} 37. Rd2 {[%clk 0:00:27]}  Ne4 {[%clk 0:00:01]} 38. Rd7 {[%clk 0:00:27]}  Nc5 {[%clk 0:00:01]} 39. Rg7+ {[%clk 0:00:26]}  Kf5 {[%clk 0:00:01]} 40. Rxh7 {[%clk 0:00:27]}  Ke4 {[%clk 0:00:01]} 41. Nd6+ {[%clk 0:00:27]}  Kxe3 {[%clk 0:00:00]} 42. Nxb7 {[%clk 0:00:28]} 1-0

[Event "December 12 Early 2023"]
[Site "https://www.chess.com"]
[Date "2023.12.12"]
[Round "4"]
[White "Tymrakiewicz, Rafal"]
[Black "Khamdamova, Afruza"]
[Result "0-1"]
[Board "141"]
[TimeControl "180+1"]
[WhiteFideId "1108832"]
[BlackFideId "14210444"]
[WhiteElo "2403"]
[BlackElo "2524"]
[WhiteTeam "POL"]
[BlackTeam "UZB"]
[WhiteClock "0:00:00"]
[BlackClock "0:00:28"]

1. d4 {[%clk 0:03:00]}  Nf6 {[%clk 0:03:00]} 2. Bg5 {[%clk 0:02:59]}  Ne4 {[%clk 0:03:00]} 3. Bf4 {[%clk 0:02:59]}  d5 {[%clk 0:03:00]} 4. e3 {[%clk 0:03:00]}  c5 {[%clk 0:03:00]} 5. Bd3 {[%clk 0:03:00]}  Nc6 {[%clk 0:02:59]} 6. Bxe4 {[%clk 0:03:00]}  dxe4 {[%clk 0:03:00]} 7. d5 {[%clk 0:03:00]}  Nb4 {[%clk 0:02:18]} 8. Nc3 {[%clk 0:02:58]}  Bf5 {[%clk 0:02:15]} 9. Nge2 {[%clk 0:02:33]}  Qd7 {[%clk 0:01:52]} 10. Ng3 {[%clk 0:02:27]}  Rd8 {[%clk 0:01:47]} 11. O-O {[%clk 0:01:56]}  g6 {[%clk 0:01:35]} 12. a3 {[%clk 0:01:52]}  Nxd5 {[%clk 0:01:31]} 13. Nxd5 {[%clk 0:01:02]}  Qxd5 {[%clk 0:01:31]} 14. Qxd5 {[%clk 0:00:47]}  Rxd5 {[%clk 0:01:31]} 15. Rfd1 {[%clk 0:00:46]}  Rxd1+ {[%clk 0:01:21]} 16. Rxd1 {[%clk 0:00:47]}  Bg7 {[%clk 0:01:21]} 17. Nxf5 {[%clk 0:00:46]}  gxf5 {[%clk 0:01:21]} 18. c3 {[%clk 0:00:44]}  b6 {[%clk 0:01:17]} 19. Bb8 {[%clk 0:00:35]}  a6 {[%clk 0:01:13]} 20. Bc7 {[%clk 0:00:29]}  O-O {[%clk 0:01:12]} 21. Bxb6 {[%clk 0:00:29]}  c4 {[%clk 0:01:06]} 22. Rd7 {[%clk 0:00:23]}  Rb8 {[%clk 0:00:59]} 23. Rd8+ {[%clk 0:00:23]}  Rxd8 {[%clk 0:00:58]} 24. Bxd8 {[%clk 0:00:24]}  Kf8 {[%clk 0:00:55]} 25. Kf1 {[%clk 0:00:23]}  Ke8 {[%clk 0:00:55]} 26. Bb6 {[%clk 0:00:24]}  Kd7 {[%clk 0:00:56]} 27. a4 {[%clk 0:00:20]}  Be5 {[%clk 0:00:55]} 28. g3 {[%clk 0:00:18]}  Kc6 {[%clk 0:00:53]} 29. Bd4 {[%clk 0:00:12]}  Bb8 {[%clk 0:00:34]} 30. Bg7 {[%clk 0:00:12]}  Kb6 {[%clk 0:00:32]} 31. Bf8 {[%clk 0:00:05]}  Bd6 {[%clk 0:00:32]} 32. Ke2 {[%clk 0:00:04]}  Ka5 {[%clk 0:00:32]} 33. Kd2 {[%clk 0:00:04]}  Kxa4 {[%clk 0:00:32]} 34. Kc2 {[%clk 0:00:05]}  h5 {[%clk 0:00:30]} 35. Bg7 {[%clk 0:00:02]}  f6 {[%clk 0:00:28]} 36. Bh6 {[%clk 0:00:00]}  Kb5 {[%clk 0:00:28]} 0-1

[Event "December 12 Early 2023"]
[Site "https://www.chess.com"]
[Date "2023.12.12"]
[Round "4"]
[White "Goltseva, Ekaterina"]
[Black "Mesquita, Eduardo Barbosa"]
[Result "1-0"]
[Board "142"]
[TimeControl "180+1"]
[WhiteFideId "24173770"]
[BlackFideId "22757163"]
[WhiteElo "2524"]
[BlackElo "2392"]
[WhiteTeam "RUS"]
[BlackTeam "BRA"]
[WhiteClock "0:00:28"]
[BlackClock "0:00:52"]

1. e4 {[%clk 0:03:00]}  c5 {[%clk 0:02:59]} 2. Nf3 {[%clk 0:02:59]}  d6 {[%clk 0:03:00]} 3. b3 {[%clk 0:02:52]}  Nf6 {[%clk 0:02:56]} 4. Nc3 {[%clk 0:02:46]}  Bg4 {[%clk 0:02:51]} 5. Be2 {[%clk 0:02:38]}  Nc6 {[%clk 0:02:51]} 6. Bb2 {[%clk 0:02:36]}  e6 {[%clk 0:02:47]} 7. O-O {[%clk 0:02:29]}  Be7 {[%clk 0:02:47]} 8. h3 {[%clk 0:02:25]}  Bh5 {[%clk 0:02:47]} 9. d3 {[%clk 0:02:05]}  O-O {[%clk 0:02:42]} 10. Nd2 {[%clk 0:01:58]}  Bg6 {[%clk 0:02:37]} 11. f4 {[%clk 0:01:58]}  d5 {[%clk 0:02:29]} 12. f5 {[%clk 0:01:55]}  d4 {[%clk 0:02:10]} 13. Ncb1 {[%clk 0:01:48]}  Bd6 {[%clk 0:02:05]} 14. fxg6 {[%clk 0:01:45]}  Bc7 {[%clk 0:02:04]} 15. gxh7+ {[%clk 0:01:41]}  Kh8 {[%clk 0:02:02]} 16. Nf3 {[%clk 0:01:41]}  Qd6 {[%clk 0:02:02]} 17. Nbd2 {[%clk 0:01:36]}  b5 {[%clk 0:01:57]} 18. a4 {[%clk 0:01:35]}  Qf4 {[%clk 0:01:55]} 19. Bc1 {[%clk 0:01:32]}  Qe3+ {[%clk 0:01:51]} 20. Kh1 {[%clk 0:01:29]}  Nh5 {[%clk 0:01:49]} 21. g4 {[%clk 0:01:26]}  Ng3+ {[%clk 0:01:49]} 22. Kg2 {[%clk 0:01:26]}  Qxe2+ {[%clk 0:01:30]} 23. Qxe2 {[%clk 0:01:24]}  Nxe2 {[%clk 0:01:30]} 24. axb5 {[%clk 0:01:22]}  Nb4 {[%clk 0:01:31]} 25. Nc4 {[%clk 0:01:13]}  Nc3 {[%clk 0:01:22]} 26. Rf2 {[%clk 0:01:04]}  f5 {[%clk 0:01:18]} 27. e5 {[%clk 0:00:58]}  fxg4 {[%clk 0:01:17]} 28. hxg4 {[%clk 0:00:59]}  Nxb5 {[%clk 0:01:16]} 29. Bg5 {[%clk 0:00:47]}  Nc3 {[%clk 0:01:12]} 30. Be7 {[%clk 0:00:43]}  Rf7 {[%clk 0:01:10]} 31. Bxc5 {[%clk 0:00:41]}  Nbd5 {[%clk 0:01:06]} 32. Bxd4 {[%clk 0:00:35]}  Nb5 {[%clk 0:00:58]} 33. Bc5 {[%clk 0:00:33]}  Nf4+ {[%clk 0:00:56]} 34. Kg3 {[%clk 0:00:30]}  Ng6 {[%clk 0:00:54]} 35. Ng5 {[%clk 0:00:29]}  Rxf2 {[%clk 0:00:54]} 36. Kxf2 {[%clk 0:00:28]}  Nxe5 {[%clk 0:00:54]} 37. Nxe5 {[%clk 0:00:28]}  Bxe5 {[%clk 0:00:52]} 38. Nf7+ {[%clk 0:00:28]} 1-0

[Event "December 12 Early 2023"]
[Site "https://www.chess.com"]
[Date "2023.12.12"]
[Round "4"]
[White "Chandra, Anand Rishi"]
[Black "Rogov, Matfey"]
[Result "0-1"]
[Board "144"]
[TimeControl "180+1"]
[WhiteFideId "2626152"]
[BlackFideId "44191308"]
[WhiteElo "2380"]
[BlackElo "2517"]
[WhiteTeam "CAN"]
[BlackTeam "RUS"]
[WhiteClock "0:01:12"]
[BlackClock "0:00:30"]

1. e4 {[%clk 0:02:14]}  c5 {[%clk 0:02:59]} 2. Nc3 {[%clk 0:02:09]}  Nc6 {[%clk 0:02:56]} 3. f4 {[%clk 0:02:08]}  g6 {[%clk 0:02:54]} 4. Nf3 {[%clk 0:02:08]}  Bg7 {[%clk 0:02:54]} 5. Bc4 {[%clk 0:02:08]}  e6 {[%clk 0:02:53]} 6. d3 {[%clk 0:02:09]}  Nge7 {[%clk 0:02:51]} 7. O-O {[%clk 0:02:09]}  d5 {[%clk 0:02:49]} 8. Bb5 {[%clk 0:02:08]}  O-O {[%clk 0:02:41]} 9. Bxc6 {[%clk 0:02:08]}  bxc6 {[%clk 0:02:38]} 10. Qe1 {[%clk 0:02:09]}  Rb8 {[%clk 0:02:35]} 11. Qh4 {[%clk 0:02:08]}  f5 {[%clk 0:02:12]} 12. e5 {[%clk 0:02:03]}  d4 {[%clk 0:02:08]} 13. Nb1 {[%clk 0:02:01]}  Nd5 {[%clk 0:02:01]} 14. b3 {[%clk 0:01:59]}  Qxh4 {[%clk 0:01:57]} 15. Nxh4 {[%clk 0:01:59]}  a5 {[%clk 0:01:51]} 16. a4 {[%clk 0:01:56]}  Ba6 {[%clk 0:01:48]} 17. Nf3 {[%clk 0:01:55]}  h6 {[%clk 0:01:38]} 18. h4 {[%clk 0:01:53]}  Kf7 {[%clk 0:01:34]} 19. Bd2 {[%clk 0:01:50]}  Nb4 {[%clk 0:01:33]} 20. Bxb4 {[%clk 0:01:50]}  Rxb4 {[%clk 0:01:26]} 21. Nbd2 {[%clk 0:01:47]}  Rg8 {[%clk 0:01:21]} 22. Kf2 {[%clk 0:01:47]}  Bf8 {[%clk 0:01:21]} 23. g3 {[%clk 0:01:47]}  Be7 {[%clk 0:01:19]} 24. Nc4 {[%clk 0:01:47]}  Bxc4 {[%clk 0:01:17]} 25. dxc4 {[%clk 0:01:48]}  d3 {[%clk 0:01:13]} 26. Nd2 {[%clk 0:01:45]}  dxc2 {[%clk 0:01:11]} 27. Rac1 {[%clk 0:01:45]}  g5 {[%clk 0:01:11]} 28. hxg5 {[%clk 0:01:44]}  hxg5 {[%clk 0:01:12]} 29. Rxc2 {[%clk 0:01:44]}  gxf4 {[%clk 0:01:03]} 30. gxf4 {[%clk 0:01:45]}  Bh4+ {[%clk 0:01:02]} 31. Ke3 {[%clk 0:01:43]}  Rg3+ {[%clk 0:01:00]} 32. Rf3 {[%clk 0:01:43]}  Rg2 {[%clk 0:00:57]} 33. Rh3 {[%clk 0:01:42]}  Be1 {[%clk 0:00:49]} 34. Rh7+ {[%clk 0:01:35]}  Kg6 {[%clk 0:00:47]} 35. Rh8 {[%clk 0:01:31]}  Bxd2+ {[%clk 0:00:44]} 36. Kf3 {[%clk 0:01:32]}  Rg4 {[%clk 0:00:35]} 37. Rxd2 {[%clk 0:01:27]}  Rxb3+ {[%clk 0:00:35]} 38. Ke2 {[%clk 0:01:12]}  Rxf4 {[%clk 0:00:30]} 0-1

[Event "December 12 Early 2023"]
[Site "https://www.chess.com"]
[Date "2023.12.12"]
[Round "4"]
[White "Guerrero Olmos, Sergio"]
[Black "Donchenko, Anatoly"]
[Result "1-0"]
[Board "145"]
[TimeControl "180+1"]
[WhiteFideId "2257238"]
[BlackFideId "4106091"]
[WhiteElo "2517"]
[BlackElo "2380"]
[WhiteTeam "ESP"]
[BlackTeam "GER"]
[WhiteClock "0:00:33"]
[BlackClock "0:00:09"]

1. d4 {[%clk 0:02:46]}  d5 {[%clk 0:02:58]} 2. Nf3 {[%clk 0:02:46]}  Nf6 {[%clk 0:02:57]} 3. Bf4 {[%clk 0:02:45]}  a6 {[%clk 0:02:56]} 4. e3 {[%clk 0:02:45]}  Bg4 {[%clk 0:02:55]} 5. c4 {[%clk 0:02:45]}  dxc4 {[%clk 0:02:54]} 6. Bxc4 {[%clk 0:02:45]}  e6 {[%clk 0:02:54]} 7. Nbd2 {[%clk 0:02:41]}  Bd6 {[%clk 0:02:53]} 8. Bg3 {[%clk 0:02:33]}  O-O {[%clk 0:02:51]} 9. Rc1 {[%clk 0:02:33]}  Nbd7 {[%clk 0:02:49]} 10. Qb3 {[%clk 0:02:30]}  b5 {[%clk 0:02:48]} 11. Be2 {[%clk 0:02:26]}  Qe7 {[%clk 0:02:43]} 12. O-O {[%clk 0:02:24]}  c5 {[%clk 0:02:40]} 13. Bxd6 {[%clk 0:01:59]}  Qxd6 {[%clk 0:02:38]} 14. Qa3 {[%clk 0:01:56]}  Rfc8 {[%clk 0:02:34]} 15. Nb3 {[%clk 0:01:49]}  b4 {[%clk 0:02:27]} 16. dxc5 {[%clk 0:01:40]}  bxa3 {[%clk 0:02:23]} 17. cxd6 {[%clk 0:01:38]}  axb2 {[%clk 0:02:23]} 18. Rxc8+ {[%clk 0:01:36]}  Rxc8 {[%clk 0:02:21]} 19. Rb1 {[%clk 0:01:27]}  Ne4 {[%clk 0:02:00]} 20. Rxb2 {[%clk 0:01:20]}  Nxd6 {[%clk 0:01:51]} 21. Bxa6 {[%clk 0:01:18]}  Ra8 {[%clk 0:01:49]} 22. Bf1 {[%clk 0:01:18]}  Bxf3 {[%clk 0:01:45]} 23. gxf3 {[%clk 0:01:17]}  Ne5 {[%clk 0:01:45]} 24. Kg2 {[%clk 0:01:14]}  g5 {[%clk 0:01:41]} 25. Rc2 {[%clk 0:01:10]}  Ra3 {[%clk 0:01:37]} 26. h4 {[%clk 0:01:02]}  h6 {[%clk 0:01:34]} 27. hxg5 {[%clk 0:01:02]}  hxg5 {[%clk 0:01:34]} 28. Rc5 {[%clk 0:00:58]}  f6 {[%clk 0:01:28]} 29. Nd4 {[%clk 0:00:57]}  Rxa2 {[%clk 0:01:22]} 30. Nxe6 {[%clk 0:00:54]}  Nf5 {[%clk 0:01:13]} 31. Nxg5 {[%clk 0:00:52]}  Nxe3+ {[%clk 0:01:10]} 32. Kg1 {[%clk 0:00:49]}  fxg5 {[%clk 0:00:52]} 33. Rxe5 {[%clk 0:00:45]}  Kh7 {[%clk 0:00:40]} 34. fxe3 {[%clk 0:00:43]}  Kg6 {[%clk 0:00:39]} 35. Bd3+ {[%clk 0:00:43]}  Kh6 {[%clk 0:00:38]} 36. Bf5 {[%clk 0:00:42]}  Re2 {[%clk 0:00:35]} 37. Kf1 {[%clk 0:00:40]}  Rb2 {[%clk 0:00:33]} 38. Bg4 {[%clk 0:00:39]}  Kg6 {[%clk 0:00:33]} 39. Re6+ {[%clk 0:00:39]}  Kf7 {[%clk 0:00:32]} 40. e4 {[%clk 0:00:38]}  Rd2 {[%clk 0:00:29]} 41. Rc6 {[%clk 0:00:37]}  Rb2 {[%clk 0:00:28]} 42. e5 {[%clk 0:00:36]}  Rd2 {[%clk 0:00:24]} 43. Bf5 {[%clk 0:00:35]}  Rb2 {[%clk 0:00:20]} 44. Rc7+ {[%clk 0:00:35]}  Kf8 {[%clk 0:00:19]} 45. e6 {[%clk 0:00:35]}  Rc2 {[%clk 0:00:09]} 46. Bxc2 {[%clk 0:00:33]} 1-0

[Event "December 12 Early 2023"]
[Site "https://www.chess.com"]
[Date "2023.12.12"]
[Round "4"]
[White "Topalov, Aleksandar"]
[Black "Valle Luis, Leo"]
[Result "0-1"]
[Board "146"]
[TimeControl "180+1"]
[WhiteFideId "925659"]
[BlackFideId "54577187"]
[WhiteElo "2379"]
[BlackElo "2516"]
[WhiteTeam "SRB"]
[BlackTeam "ESP"]
[WhiteClock "0:00:53"]
[BlackClock "0:01:04"]

1. b3 {[%clk 0:03:00]}  Nf6 {[%clk 0:02:59]} 2. Bb2 {[%clk 0:02:57]}  g6 {[%clk 0:02:59]} 3. Bxf6 {[%clk 0:02:56]}  exf6 {[%clk 0:03:00]} 4. c4 {[%clk 0:02:54]}  Bg7 {[%clk 0:02:59]} 5. Nc3 {[%clk 0:02:54]}  O-O {[%clk 0:03:00]} 6. e3 {[%clk 0:02:53]}  c6 {[%clk 0:03:00]} 7. Nge2 {[%clk 0:02:52]}  f5 {[%clk 0:02:59]} 8. g3 {[%clk 0:02:51]}  d6 {[%clk 0:02:58]} 9. Bg2 {[%clk 0:02:51]}  Nd7 {[%clk 0:02:57]} 10. O-O {[%clk 0:02:51]}  Qe7 {[%clk 0:02:56]} 11. Rb1 {[%clk 0:02:51]}  Re8 {[%clk 0:02:56]} 12. b4 {[%clk 0:02:51]}  Ne5 {[%clk 0:02:49]} 13. d3 {[%clk 0:02:49]}  Rb8 {[%clk 0:02:45]} 14. b5 {[%clk 0:02:49]}  Bd7 {[%clk 0:02:42]} 15. bxc6 {[%clk 0:02:43]}  bxc6 {[%clk 0:02:38]} 16. Qa4 {[%clk 0:02:22]}  Nxd3 {[%clk 0:02:30]} 17. Bxc6 {[%clk 0:02:15]}  Nc5 {[%clk 0:02:27]} 18. Nd5 {[%clk 0:02:08]}  Qd8 {[%clk 0:02:09]} 19. Bxd7 {[%clk 0:01:46]}  Nxa4 {[%clk 0:02:06]} 20. Bxa4 {[%clk 0:01:45]}  Rf8 {[%clk 0:01:59]} 21. Nd4 {[%clk 0:01:38]}  Bxd4 {[%clk 0:01:51]} 22. exd4 {[%clk 0:01:38]}  Qa5 {[%clk 0:01:50]} 23. Ne7+ {[%clk 0:01:34]}  Kg7 {[%clk 0:01:50]} 24. Nc6 {[%clk 0:01:33]}  Qxa4 {[%clk 0:01:50]} 25. Nxb8 {[%clk 0:01:32]}  Qxc4 {[%clk 0:01:50]} 26. Rfd1 {[%clk 0:01:26]}  Qxa2 {[%clk 0:01:46]} 27. Rb7 {[%clk 0:01:24]}  Qa4 {[%clk 0:01:40]} 28. Rc1 {[%clk 0:01:21]}  Qxd4 {[%clk 0:01:38]} 29. Rcc7 {[%clk 0:01:21]}  a5 {[%clk 0:01:36]} 30. Nc6 {[%clk 0:01:20]}  Qd1+ {[%clk 0:01:36]} 31. Kg2 {[%clk 0:01:20]}  Qd5+ {[%clk 0:01:36]} 32. Kg1 {[%clk 0:01:16]}  Re8 {[%clk 0:01:37]} 33. Ne7 {[%clk 0:01:13]}  Qd1+ {[%clk 0:01:27]} 34. Kg2 {[%clk 0:01:12]}  Qd3 {[%clk 0:01:18]} 35. Nc6 {[%clk 0:01:09]}  Qd5+ {[%clk 0:01:16]} 36. Kh3 {[%clk 0:01:07]}  a4 {[%clk 0:01:15]} 37. Ra7 {[%clk 0:01:03]}  f4 {[%clk 0:01:11]} 38. gxf4 {[%clk 0:00:59]}  Qf3+ {[%clk 0:01:02]} 39. Kh4 {[%clk 0:00:56]}  Qxf4+ {[%clk 0:01:03]} 40. Kh3 {[%clk 0:00:56]}  Qf3+ {[%clk 0:01:04]} 41. Kh4 {[%clk 0:00:53]}  Re4+ {[%clk 0:01:04]} 0-1

[Event "December 12 Early 2023"]
[Site "https://www.chess.com"]
[Date "2023.12.12"]
[Round "4"]
[White "Durucay, Uygar"]
[Black "Melikhov, Evgeny V."]
[Result "0-1"]
[Board "148"]
[TimeControl "180+1"]
[WhiteFideId "44591560"]
[BlackFideId "4122046"]
[WhiteElo "2515"]
[BlackElo "2372"]
[WhiteTeam "TUR"]
[BlackTeam "GRE"]
[WhiteClock "0:00:00"]
[BlackClock "0:00:14"]

1. d4 {[%clk 0:03:00]}  Nf6 {[%clk 0:02:59]} 2. Nf3 {[%clk 0:03:00]}  d5 {[%clk 0:02:59]} 3. c4 {[%clk 0:02:59]}  e6 {[%clk 0:02:59]} 4. cxd5 {[%clk 0:02:59]}  exd5 {[%clk 0:02:59]} 5. Bf4 {[%clk 0:02:59]}  Bd6 {[%clk 0:02:50]} 6. Bg5 {[%clk 0:02:46]}  h6 {[%clk 0:02:49]} 7. Bh4 {[%clk 0:02:45]}  Be7 {[%clk 0:02:45]} 8. Qc2 {[%clk 0:02:43]}  c6 {[%clk 0:02:40]} 9. Nc3 {[%clk 0:02:42]}  O-O {[%clk 0:02:40]} 10. e3 {[%clk 0:02:35]}  Nh5 {[%clk 0:02:27]} 11. Bg3 {[%clk 0:02:10]}  Nxg3 {[%clk 0:02:25]} 12. hxg3 {[%clk 0:02:11]}  Nd7 {[%clk 0:02:22]} 13. Bd3 {[%clk 0:02:09]}  Nf6 {[%clk 0:02:20]} 14. O-O {[%clk 0:02:08]}  Re8 {[%clk 0:02:10]} 15. a3 {[%clk 0:02:05]}  Bd6 {[%clk 0:02:08]} 16. b4 {[%clk 0:02:02]}  a6 {[%clk 0:02:07]} 17. Rab1 {[%clk 0:02:02]}  Ng4 {[%clk 0:02:04]} 18. a4 {[%clk 0:01:56]}  Bxg3 {[%clk 0:01:57]} 19. fxg3 {[%clk 0:01:57]}  Nxe3 {[%clk 0:01:57]} 20. Qf2 {[%clk 0:01:56]}  Nxf1 {[%clk 0:01:57]} 21. Rxf1 {[%clk 0:01:56]}  Qd6 {[%clk 0:01:50]} 22. Ne5 {[%clk 0:01:54]}  Be6 {[%clk 0:01:46]} 23. Nxf7 {[%clk 0:01:32]}  Bxf7 {[%clk 0:01:33]} 24. Qxf7+ {[%clk 0:01:31]}  Kh8 {[%clk 0:01:34]} 25. Qf5 {[%clk 0:01:14]}  g6 {[%clk 0:01:33]} 26. Qh3 {[%clk 0:01:05]}  Kg7 {[%clk 0:01:29]} 27. Ne2 {[%clk 0:01:05]}  Re3 {[%clk 0:01:14]} 28. Nf4 {[%clk 0:00:59]}  Rf8 {[%clk 0:01:04]} 29. Bb1 {[%clk 0:00:35]}  Rf6 {[%clk 0:00:47]} 30. Kh2 {[%clk 0:00:27]}  h5 {[%clk 0:00:27]} 31. Qh4 {[%clk 0:00:20]}  Kh6 {[%clk 0:00:23]} 32. Nxh5 {[%clk 0:00:04]}  Rxf1 {[%clk 0:00:18]} 33. Nf4+ {[%clk 0:00:04]}  Kg7 {[%clk 0:00:17]} 34. Bxg6 {[%clk 0:00:04]}  Rxf4 {[%clk 0:00:14]} 35. Qh7+ {[%clk 0:00:04]}  Kf6 {[%clk 0:00:14]} 36. Qf7+ {[%clk 0:00:04]}  Kg5 {[%clk 0:00:14]} 37. gxf4+ {[%clk 0:00:02]}  Qxf4+ {[%clk 0:00:14]} 38. Qxf4+ {[%clk 0:00:00]}  Kxf4 {[%clk 0:00:14]} 0-1